fUSD/lending_fUSD_20240916
["ID","MTS","AMOUNT","RATE_DAILY","PERIOD"]
[338315790,1726493445737,-5990.73861914,0.00015,2]
[338315791,1726493445797,-3000.0,0.00015,2]
[338315792,1726493445809,-315.79999999,0.00015,2]
[338315793,1726493445859,-1650.24238056,0.00015,2]
[338315794,1726493445871,-15539.40003336,0.00015,2]
[338315795,1726493445884,-9831.76687634,0.00015,2]
[338315796,1726493445897,-7036.33453213,0.00015,2]
[338315797,1726493445909,-4511.90414,0.00015,2]
[338315798,1726493445922,-580.752,0.00015,2]
[338315799,1726493445994,-335.92516333,0.00015,2]
[338315800,1726493446110,-5878.4393864,0.00015,2]
[338315881,1726493467258,470.30342916,0.00028,120]
[338315892,1726493497702,402.3,0.00012478,2]
[338315895,1726493844766,1132.45160433,0.0002799,120]
[338315896,1726494021387,400.69,0.00011769,2]
[338315914,1726494318514,-1993.1182,0.00012773,2]
[338317137,1726494565003,398.25,0.0001164,2]
[338317158,1726494631874,-609.12083526,0.00013216,2]
[338317160,1726494631884,-150.0,0.00013216,2]
[338317162,1726494631893,-250.0,0.00013475,2]
[338317164,1726494631902,-200.0,0.00013544,2]
[338317166,1726494631912,-250.0,0.00013562,2]
[338317168,1726494631921,-150.25,0.00013625,2]
[338317170,1726494631930,-4442.50627349,0.00013625,2]
[338317172,1726494631939,-423.43,0.0001368,2]
[338317174,1726494631948,-168.32,0.00013687,2]
[338317176,1726494631957,-299.99,0.00013699,2]
[338317178,1726494631966,-150.01,0.00013699,2]
[338317180,1726494631975,-398.25,0.00013903,2]
[338317181,1726494631984,-499.99,0.00013903,2]
[338317183,1726494631994,-171.41,0.00013917,2]
[338317184,1726494632003,-1008.039555,0.000141,2]
[338317185,1726494632012,-150.01,0.00014233,2]
[338317186,1726494632021,-260.00767,0.00014247,2]
[338317187,1726494632031,-1000.0,0.00014359,2]
[338317188,1726494632040,-300.0,0.00014599,2]
[338317189,1726494632050,-808.86566625,0.000146,2]
[338317190,1726494632064,-2302.76513542,0.000146,2]
[338317193,1726494632284,-2001.12519833,0.000146,2]
[338317194,1726494632293,-376.9828,0.000146,2]
[338317195,1726494632303,-928.22011717,0.000146,2]
[338317196,1726494632314,-1571.77988283,0.000146,2]
[338317197,1726494632323,-849.31911791,0.000146,2]
[338317199,1726494638006,-663.25372651,0.00013116,2]
[338317200,1726494638016,-1106.92174399,0.000146,2]
[338317201,1726494638027,-2622.0242381,0.000146,2]
[338317202,1726494638037,-1467.1759,0.000146,2]
[338317203,1726494638046,-169.20297499,0.000146,2]
[338317204,1726494638057,-169.20297497,0.00014633,2]
[338317205,1726494638066,-242.4934695,0.00014639,2]
[338317206,1726494638075,-169.20297497,0.00014667,2]
[338317207,1726494638089,-6649.49746747,0.0001469,2]
[338317208,1726494638100,-762.4338549,0.0001469,2]
[338317209,1726494638110,-151.75,0.0001469,2]
[338317210,1726494638119,-179.31398523,0.0001469,2]
[338317211,1726494638129,-179.31398523,0.0001469,2]
[338317212,1726494638139,-179.31398523,0.0001469,2]
[338317213,1726494638148,-251.637,0.00014699,2]
[338317214,1726494638159,-1105.566,0.00014699,2]
[338317215,1726494638168,-500.0,0.00014699,2]
[338317216,1726494638178,-500.0,0.00014699,2]
[338317217,1726494638187,-466.09837653,0.00014699,2]
[338317218,1726494638197,-550.60231015,0.00014699,2]
[338317219,1726494638206,-500.0,0.00014699,2]
[338317220,1726494638214,-500.0,0.00014699,2]
[338317221,1726494638223,-482.02536496,0.00014699,2]
[338317222,1726494638233,-52191.94513777,0.000147,2]
[338317223,1726494638244,-2344.10691533,0.000147,2]
[338317224,1726494638255,-856.4166908,0.000147,2]
[338317357,1726494639962,-5835.0,0.000147,2]
[338317375,1726494640135,-292.5,0.000147,2]
[338317386,1726494640239,-10027.9058,0.000147,2]
[338317389,1726494640251,-1258.21258024,0.000147,2]
[338317512,1726494643802,-1000.0,0.00014058,2]
[338317514,1726494643812,-57331.25500213,0.000147,2]
[338319577,1726494665503,800.0,0.00027863,120]
[338319827,1726494725069,800.0,0.00027863,120]
[338319852,1726494736387,300.0,0.00028,120]
[338319857,1726494785336,800.0,0.00028,120]
[338319864,1726494822677,4890.6679308,0.00028,120]
[338319866,1726494832180,153.41,0.00010959,2]
[338319868,1726494843556,800.0,0.00028,120]
[338319870,1726494881691,533.22,0.00027987,120]
[338319871,1726494891432,520.75,0.00027987,120]
[338319872,1726494899259,1050.0,0.00011,2]
[338319873,1726494901688,533.22,0.00027987,120]
[338319874,1726494904510,800.0,0.00028,120]
[338319875,1726494917721,533.22,0.00027987,120]
[338319876,1726494927892,533.22,0.00027987,120]
[338319879,1726494965212,800.0,0.00028,120]
[338319881,1726495024228,800.0,0.00028,120]
[338319883,1726495249462,14945.94,0.00012938,2]
[338319884,1726495290379,796.76,0.00012937,2]
[338319885,1726495312455,412.64,0.00011017,2]
[338319886,1726495332130,165.47941094,0.00012994,2]
[338319888,1726495425683,3147.325437,0.00013,2]
[338319889,1726495436627,150.24,0.0001298,2]
[338319890,1726495446872,310.36,0.00012996,2]
[338319892,1726495473895,151.1,0.00010959,2]
[338319893,1726495508236,250.0,0.00012993,2]
[338319894,1726495532277,420.1107,0.00012936,2]
[338319895,1726495536794,250.0,0.0001278,2]
[338319971,1726495615058,176.93,0.00012776,2]
[338319972,1726495649717,2000.0,0.00012786,2]
[338319974,1726495654772,800.0,0.00012798,2]
[338319978,1726495677083,250.0,0.00012807,2]
[338319981,1726495709133,409.17,0.00012814,2]
[338319986,1726495832146,-178.04,0.00013001,2]
[338319987,1726495832155,-322.3,0.00013003,2]
[338319988,1726495832164,-322.3,0.00013006,2]
[338319989,1726495832173,-285.55691343,0.0001301,2]
[338319990,1726495832184,-36.74308657,0.0001301,2]
[338319991,1726495832194,-300.0,0.00013011,2]
[338319992,1726495832203,-2043.9145,0.00013012,2]
[338319993,1726495832212,-322.3,0.00013013,2]
[338319994,1726495832221,-322.3,0.00013017,2]
[338319995,1726495832230,-322.3,0.0001302,2]
[338319996,1726495832239,-322.3,0.00013023,2]
[338319997,1726495832248,-8103.12,0.00013027,2]
[338319998,1726495832258,-322.3,0.00013027,2]
[338319999,1726495832267,-322.3,0.0001303,2]
[338320000,1726495832278,-322.3,0.00013034,2]
[338320001,1726495832287,-322.3,0.00013037,2]
[338320002,1726495832297,-322.3,0.0001304,2]
[338320003,1726495832307,-322.3,0.00013044,2]
[338320004,1726495832316,-322.3,0.00013047,2]
[338320005,1726495832326,-322.3,0.00013051,2]
[338320006,1726495832336,-322.3,0.00013054,2]
[338320007,1726495832345,-322.3,0.00013058,2]
[338320008,1726495832355,-322.3,0.00013061,2]
[338320009,1726495832364,-322.3,0.00013064,2]
[338320010,1726495832374,-322.3,0.00013068,2]
[338320011,1726495832384,-200.0,0.0001311,2]
[338320012,1726495832393,-162.26,0.00013112,2]
[338320013,1726495832403,-196.03,0.00013194,2]
[338320014,1726495832412,-150.0,0.00013216,2]
[338320015,1726495832422,-150.0,0.00013216,2]
[338320016,1726495832432,-150.08851546,0.00013216,2]
[338320017,1726495832442,-150.00000001,0.00013216,2]
[338320018,1726495832452,-150.0,0.00013216,2]
[338320019,1726495832461,-150.0,0.00013216,2]
[338320020,1726495832471,-150.0,0.00013216,2]
[338320022,1726495832481,-150.0,0.00013216,2]
[338320024,1726495832490,-150.0,0.00013216,2]
[338320026,1726495832501,-150.0,0.00013216,2]
[338320028,1726495832510,-150.0,0.00013216,2]
[338320030,1726495832520,-150.088282,0.00013216,2]
[338320032,1726495832530,-150.0,0.00013303,2]
[338320034,1726495832540,-150.0,0.00013389,2]
[338320036,1726495832549,-193.12,0.00013408,2]
[338320038,1726495832559,-150.0,0.00013426,2]
[338320040,1726495832568,-150.0,0.00013476,2]
[338320042,1726495832578,-150.0,0.00013562,2]
[338320044,1726495832588,-150.0,0.00013584,2]
[338320046,1726495832597,-150.0,0.00013636,2]
[338320047,1726495832606,-150.0,0.00013648,2]
[338320049,1726495832615,-150.01,0.00013699,2]
[338320051,1726495832625,-150.0,0.00013735,2]
[338320053,1726495832634,-254.1,0.00013741,2]
[338320055,1726495832644,-352.49262757,0.00013799,2]
[338320057,1726495832654,-7709.0,0.000138,2]
[338320059,1726495832663,-150.0,0.00013821,2]
[338320061,1726495832672,-150.0,0.00013846,2]
[338320063,1726495832681,-150.0,0.00013907,2]
[338320065,1726495832691,-150.0,0.00013951,2]
[338320067,1726495832700,-150.0,0.00013994,2]
[338320069,1726495832709,-300.0,0.00014,2]
[338320071,1726495832718,-150.0,0.00014056,2]
[338320073,1726495832727,-150.0,0.0001408,2]
[338320075,1726495832738,-494.993247,0.00014133,2]
[338320077,1726495832747,-494.993247,0.00014133,2]
[338320079,1726495832756,-494.993248,0.00014133,2]
[338320080,1726495832767,-10357.216676,0.00014133,2]
[338320082,1726495832779,-150.0,0.00014167,2]
[338320084,1726495832788,-150.01,0.00014188,2]
[338320086,1726495832798,-181.93,0.00014244,2]
[338320088,1726495832807,-150.0,0.00014253,2]
[338320089,1726495832816,-150.0,0.00014265,2]
[338320090,1726495832826,-420.0,0.00014269,2]
[338320091,1726495832835,-494.993247,0.0001431,2]
[338320092,1726495832844,-494.993247,0.0001431,2]
[338320093,1726495832853,-494.993248,0.0001431,2]
[338320094,1726495832863,-10357.216676,0.0001431,2]
[338320095,1726495832872,-150.0,0.00014318,2]
[338320096,1726495832880,-150.0,0.00014339,2]
[338320097,1726495832890,-800.0,0.00014398,2]
[338320098,1726495832899,-421.72536693,0.0001441,2]
[338320099,1726495832908,-150.0,0.00014426,2]
[338320100,1726495832918,-150.0,0.00014475,2]
[338320101,1726495832927,-494.993247,0.00014486,2]
[338320102,1726495832936,-494.993247,0.00014486,2]
[338320103,1726495832945,-494.993248,0.00014486,2]
[338320104,1726495832955,-10357.216676,0.00014486,2]
[338320105,1726495832964,-4581.94,0.00014504,2]
[338320106,1726495832974,-29999.99,0.00014504,2]
[338320107,1726495832982,-1203.90562169,0.00014504,2]
[338320108,1726495832994,-15699.9359719,0.00014504,2]
[338320109,1726495833009,-1644.77088737,0.00014504,2]
[338320110,1726495833020,-1289.065259,0.00014504,2]
[338320115,1726495838094,-162.31226004,0.00014504,2]
[338320116,1726495838103,-3484.01,0.00014504,2]
[338320117,1726495838112,-4111.16533596,0.00014504,2]
[338320118,1726495838124,-1656.96940033,0.00014504,2]
[338320119,1726495838136,-496.804842,0.00014504,2]
[338320120,1726495838147,-479.23585153,0.00014504,2]
[338320121,1726495838158,-500.0,0.00014504,2]
[338320122,1726495838169,-669.980028,0.00014504,2]
[338320123,1726495838180,-1856.5631075,0.00014504,2]
[338320124,1726495838191,-300.32,0.00014504,2]
[338320125,1726495838202,-775.44461026,0.00014504,2]
[338320126,1726495838244,-17996.72186206,0.00014504,2]
[338320127,1726495838255,-734.84497895,0.00014504,2]
[338320128,1726495838343,-421.93998341,0.00014504,2]
[338320129,1726495838353,-150.0,0.00014512,2]
[338320130,1726495838363,-684.36866,0.0001455,2]
[338320131,1726495838372,-150.0,0.00014569,2]
[338320132,1726495838382,-13483.0,0.00014569,2]
[338320133,1726495838391,-150.0,0.00014599,2]
[338320134,1726495838401,-925.7027,0.000146,2]
[338320135,1726495838410,-1879.0183,0.000146,2]
[338320136,1726495838419,-777.2697,0.000146,2]
[338320137,1726495838429,-1723.4823,0.000146,2]
[338320138,1726495838439,-144106.3614,0.000146,2]
[338320139,1726495838448,-720.718,0.000146,2]
[338320140,1726495838458,-210.49047003,0.000146,2]
[338320141,1726495838467,-7174.6899,0.000146,2]
[338320142,1726495838476,-7931.0443,0.000146,2]
[338320143,1726495838486,-163.52327028,0.000146,2]
[338320144,1726495838496,-7500.0,0.000146,2]
[338320145,1726495838505,-684.36867,0.000146,2]
[338320146,1726495838514,-207.35630562,0.000146,2]
[338320147,1726495838524,-182.91452335,0.000146,2]
[338320148,1726495838535,-8930.95416326,0.000146,2]
[338320149,1726495838544,-178.04,0.00014626,2]
[338320150,1726495838554,-494.993247,0.00014663,2]
[338320151,1726495838564,-494.993247,0.00014663,2]
[338320152,1726495838573,-494.993248,0.00014663,2]
[338320153,1726495838583,-10357.216676,0.00014663,2]
[338320154,1726495838592,-150.01,0.00014677,2]
[338320155,1726495838601,-684.36867,0.0001468,2]
[338320156,1726495838611,-282.57705947,0.00014685,2]
[338320157,1726495838620,-275.53675388,0.00014685,2]
[338320158,1726495838630,-198.58083119,0.00014685,2]
[338320159,1726495838639,-150.0,0.00014685,2]
[338320160,1726495838648,-151.38,0.0001469,2]
[338320161,1726495838658,-159.3902091,0.0001469,2]
[338320162,1726495838668,-159.3902091,0.0001469,2]
[338320163,1726495838677,-159.3902091,0.0001469,2]
[338320164,1726495838687,-320.1144,0.00014694,2]
[338320165,1726495838697,-1117.01920495,0.00014699,5]
[338320166,1726495838707,-649.0,0.000147,2]
[338320167,1726495838716,-190413.52207431,0.000147,2]
[338320168,1726495838728,-1466.375,0.000147,2]
[338320169,1726495838739,-5314.22404625,0.000147,2]
[338320170,1726495838750,-440.1604635,0.000147,2]
[338320171,1726495838762,-586.27968751,0.000147,2]
[338320173,1726495838776,-24059.66385186,0.000147,2]
[338320174,1726495840188,-13990.29513266,0.0001455,2]
[338320175,1726495840198,-2345.0731612,0.000147,2]
[338320176,1726495840208,-9206.82164582,0.000147,2]
[338320177,1726495840219,-2492.56179126,0.000147,2]
[338320178,1726495840231,-449.73532664,0.000147,2]
[338320179,1726495840480,-1754.66,0.000147,2]
[338320184,1726495841679,424.4,0.00012002,2]
[338320399,1726495846099,-424.4,0.00014266,2]
[338320401,1726495846108,-168.40771537,0.000146,2]
[338320403,1726495846117,-5416.44149338,0.000147,2]
[338320406,1726495846128,-1505.59378036,0.000147,2]
[338320422,1726495846269,-18886.39629546,0.000147,2]
[338321348,1726495856475,-340.15012429,0.000147,2]
[338321349,1726495856490,-2082.4977933,0.000147,2]
[338321350,1726495856502,-721.62621433,0.000147,2]
[338321397,1726496366552,398.15,0.00011709,2]
[338321423,1726496529764,17684.0,0.00028,120]
[338321446,1726496708616,946.61625206,0.00013,2]
[338321447,1726496708646,30000.0,0.00013,2]
[338321448,1726496708676,30000.0,0.00013,2]
[338321449,1726496708703,30000.0,0.00013,2]
[338321450,1726496708732,30000.0,0.00013,2]
[338321508,1726496897823,392.47,0.00011209,2]
[338321561,1726497032319,-1745.37362999,0.000129,2]
[338321562,1726497032415,-1005.90316676,0.000129,2]
[338321563,1726497032424,-33.24656946,0.000129,2]
[338321564,1726497032436,-127.78354024,0.000129,2]
[338321565,1726497032445,-310.39588909,0.000129,2]
[338321566,1726497032454,-962.26214108,0.000129,2]
[338321567,1726497032464,-151.19,0.0001299,2]
[338321568,1726497032474,-2645.13647583,0.00012999,2]
[338321569,1726497032483,-317.09238987,0.00012999,2]
[338321570,1726497032493,-150.0,0.00012999,2]
[338321571,1726497032512,-2185.70667168,0.00013,2]
[338321572,1726497032523,-1163.4,0.00013,2]
[338321573,1726497032541,-1759.92,0.00013,2]
[338321574,1726497032553,-16114.26468077,0.00013,2]
[338321575,1726497032563,-99861.39317511,0.00013,2]
[338321586,1726497038317,-2003.55378,0.00013,2]
[338321587,1726497038328,-1274.99780003,0.00013,2]
[338321588,1726497038402,-1136.312248,0.00013,2]
[338321589,1726497038412,-294.06802,0.00013,2]
[338321591,1726497038709,-2926.924,0.00013,2]
[338321738,1726497040312,-373.65884647,0.00013,2]
[338321740,1726497040324,-1165.4,0.00013,2]
[338321743,1726497040342,-1643281.37441511,0.00013,2]
[338321745,1726497040351,-2320650.46822632,0.00013,2]
[338321747,1726497040361,-2751.27679667,0.00013122,2]
[338321749,1726497040371,-201.24993196,0.000132,2]
[338321751,1726497040380,-480.0,0.000133,2]
[338321753,1726497040389,-2751.27679667,0.00013344,2]
[338321755,1726497040398,-250.0,0.00013441,2]
[338321757,1726497040407,-3977.25,0.00013441,2]
[338321759,1726497040416,-499.99,0.00013441,2]
[338321760,1726497040426,-392.47,0.00013473,2]
[338321762,1726497040435,-156.82,0.00013482,2]
[338321764,1726497040444,-155.18,0.00013485,2]
[338321766,1726497040453,-2751.27679667,0.00013567,2]
[338321768,1726497040462,-520.0,0.00013615,2]
[338321770,1726497040472,-1668.28,0.00013615,2]
[338321772,1726497040481,-150.99,0.00013615,2]
[338321774,1726497040490,-150.01,0.00013699,2]
[338321776,1726497040499,-179.77,0.00013721,2]
[338321778,1726497040518,-2751.27679667,0.00013789,2]
[338321780,1726497040527,-962.26214108,0.000139,2]
[338321782,1726497040537,-501.0,0.000139,3]
[338321784,1726497040547,-1000.0,0.000139,3]
[338321786,1726497040557,-1000.0,0.000139,4]
[338321788,1726497040567,-10000.0,0.0001395,2]
[338321790,1726497040577,-14088.59,0.00013973,2]
[338321792,1726497040586,-2751.27679667,0.00014011,2]
[338321794,1726497040596,-179.26,0.00014067,2]
[338321796,1726497040605,-317.902892,0.00014133,2]
[338321798,1726497040615,-273.130806,0.00014133,2]
[338321800,1726497040624,-211.935261,0.00014133,2]
[338321802,1726497040634,-150.01,0.00014226,2]
[338321804,1726497040643,-2751.27679667,0.00014233,2]
[338321806,1726497040653,-5019.23268,0.0001425,2]
[338321808,1726497040662,-317.902892,0.0001431,2]
[338321810,1726497040672,-211.935261,0.0001431,2]
[338321812,1726497040682,-214.1688,0.00014369,2]
[338321814,1726497040691,-260.9027,0.00014369,2]
[338321816,1726497040701,-38559.1975,0.000144,2]
[338321818,1726497040710,-1929.496,0.000144,2]
[338321820,1726497040719,-166.7269,0.00014404,2]
[338321822,1726497040729,-331.9208953,0.00014409,2]
[338321824,1726497040738,-2751.27679667,0.00014456,2]
[338321826,1726497040747,-63404.044,0.00014469,2]
[338321828,1726497040761,-7257.3533,0.00014469,2]
[338321830,1726497040771,-23520.999,0.00014469,2]
[338321832,1726497040780,-317.902892,0.00014486,2]
[338321834,1726497040790,-211.935261,0.00014486,2]
[338321836,1726497040799,-33306.0225,0.000145,2]
[338321838,1726497040809,-1000.0,0.000145,4]
[338321840,1726497040818,-1000.0,0.000145,4]
[338321842,1726497040828,-1000.0,0.000145,4]
[338321844,1726497040838,-1000.0,0.000145,4]
[338321845,1726497040850,-816.0,0.000145,4]
[338321847,1726497040860,-1000.0,0.000145,5]
[338321849,1726497040870,-1000.0,0.000145,3]
[338321851,1726497040879,-1000.0,0.000145,4]
[338321853,1726497040889,-500.0,0.00014521,2]
[338321855,1726497040899,-234.006903,0.00014521,2]
[338321857,1726497040908,-14884.30425681,0.0001455,2]
[338321859,1726497040917,-500.0,0.00014582,2]
[338321861,1726497040927,-200.0,0.00014582,2]
[338321863,1726497040937,-7994.10628472,0.00014599,2]
[338321865,1726497040946,-2264.6606,0.000146,2]
[338321867,1726497040955,-500.0,0.000146,2]
[338321869,1726497040964,-6243.2312,0.000146,2]
[338321871,1726497040973,-12238.8677,0.000146,2]
[338321873,1726497040982,-276.35594564,0.000146,2]
[338321875,1726497040991,-1867.8501,0.000146,2]
[338321877,1726497041000,-1005.06,0.000146,2]
[338321879,1726497041013,-317.902892,0.00014663,2]
[338321880,1726497041022,-211.935261,0.00014663,2]
[338321882,1726497041031,-199.14290265,0.00014673,2]
[338321884,1726497041041,-500.0,0.00014673,2]
[338321886,1726497041050,-203.42845757,0.00014673,2]
[338321888,1726497041059,-500.0,0.00014673,2]
[338321890,1726497041068,-160.41911329,0.00014673,2]
[338321892,1726497041077,-276.35594563,0.00014675,2]
[338321894,1726497041086,-2751.27679667,0.00014678,2]
[338321896,1726497041096,-40024.53351438,0.00014689,2]
[338321898,1726497041104,-250000.0,0.0001469,2]
[338321900,1726497041114,-151.0,0.0001469,2]
[338321902,1726497041123,-151.0,0.0001469,2]
[338321904,1726497041132,-151.0,0.0001469,2]
[338321906,1726497041141,-151.0,0.0001469,2]
[338321908,1726497041150,-151.0,0.0001469,2]
[338321910,1726497041159,-151.0,0.0001469,2]
[338321912,1726497041168,-151.0,0.0001469,2]
[338321914,1726497041178,-151.0,0.0001469,2]
[338321916,1726497041187,-151.0,0.0001469,2]
[338321918,1726497041197,-151.0,0.0001469,2]
[338321920,1726497041206,-151.0,0.0001469,2]
[338321922,1726497041215,-151.0,0.0001469,2]
[338321924,1726497041223,-151.0,0.0001469,2]
[338321926,1726497041232,-151.0,0.0001469,2]
[338321928,1726497041242,-279.425848,0.0001469,2]
[338321930,1726497041251,-154.001137,0.0001469,2]
[338321932,1726497041262,-151.0,0.0001469,2]
[338321934,1726497041272,-151.0,0.0001469,2]
[338321936,1726497041283,-151.0,0.0001469,2]
[338321938,1726497041293,-151.0,0.0001469,2]
[338321940,1726497041302,-177.111,0.0001469,2]
[338321942,1726497041311,-151.0,0.00014699,2]
[338321943,1726497041320,-151.0,0.00014699,2]
[338321945,1726497041329,-151.0,0.00014699,2]
[338321947,1726497041338,-151.0,0.00014699,2]
[338321949,1726497041347,-151.0,0.00014699,2]
[338321951,1726497041356,-393.27075,0.00014699,2]
[338321953,1726497041366,-151.0,0.00014699,2]
[338321955,1726497041375,-183.30423192,0.00014699,2]
[338321957,1726497041385,-173209.15187149,0.000147,2]
[338321960,1726497041401,-913.1421231,0.000147,2]
[338322165,1726497043531,-17431.97848714,0.000147,2]
[338322269,1726497044517,-87286.5,0.000147,2]
[338322452,1726497046270,-581.8,0.0001456,2]
[338322470,1726497046439,-228.2,0.0001456,2]
[338322471,1726497046449,-34.53016073,0.0001469,2]
[338323144,1726497209759,10000.0,0.00028,120]
[338323174,1726497443645,405.25,0.00011693,2]
[338323194,1726497594779,153.45,0.00010959,2]
[338323208,1726498017435,384.98,0.00011496,2]
[338323210,1726498035660,-3550.0,0.00013383,2]
[338323225,1726498171324,2000.0,0.00028,120]
[338323262,1726498231409,-16.44,0.00013383,2]
[338323263,1726498231418,-1500.0,0.00013406,2]
[338323264,1726498231427,-1074.32,0.00013416,2]
[338323265,1726498231436,-250.0,0.00013434,2]
[338323266,1726498231445,-155.18,0.00013441,2]
[338323267,1726498231456,-150.24,0.00013441,2]
[338323268,1726498231465,-150.0,0.00013452,2]
[338323269,1726498231474,-179.77,0.00013459,2]
[338323270,1726498231483,-384.0,0.00013469,2]
[338323271,1726498231492,-300.0,0.00013476,2]
[338323272,1726498231501,-2685.21,0.00013477,2]
[338323273,1726498231513,-648.65585568,0.00013477,2]
[338323274,1726498231524,-300.3,0.00013477,2]
[338323275,1726498231535,-4869.87206032,0.00013477,2]
[338323276,1726498231545,-353.70252937,0.00013477,2]
[338323277,1726498231556,-573.70955463,0.00013477,2]
[338323278,1726498231566,-150.01,0.00013699,2]
[338323279,1726498231575,-616.0,0.00013706,2]
[338323280,1726498231584,-178.0,0.00013726,2]
[338323281,1726498231593,-2402.80729591,0.00013726,2]
[338323282,1726498231611,-5439.96,0.00013726,2]
[338323283,1726498231623,-1472.1462219,0.00013726,2]
[338323284,1726498231634,-13.72648219,0.00013726,2]
[338323285,1726498231643,-384.98,0.0001376,2]
[338323286,1726498231652,-493.69921466,0.00014,4]
[338323287,1726498231663,-290.79688131,0.00014,4]
[338323288,1726498231679,-625.06426519,0.00014,4]
[338323289,1726498231688,-6427.58812467,0.00014,2]
[338323290,1726498231699,-6281.09083395,0.00014,2]
[338323291,1726498231710,-179.26,0.00014061,2]
[338323292,1726498231719,-2474.406914,0.00014133,2]
[338323293,1726498231728,-150.01,0.00014188,2]
[338323294,1726498231737,-2474.406914,0.0001431,2]
[338323295,1726498231747,-293.91711,0.00014456,2]
[338323296,1726498231756,-1372.71093522,0.00014476,2]
[338323297,1726498231766,-150.0,0.00014485,2]
[338323298,1726498231775,-2474.406914,0.00014486,2]
[338323299,1726498231784,-394.28666667,0.000145,2]
[338323300,1726498231793,-905.36,0.00014521,2]
[338323301,1726498231803,-2452.86214,0.0001455,2]
[338323302,1726498231812,-500.0,0.00014582,2]
[338323304,1726498231821,-200.0,0.00014582,2]
[338323305,1726498231830,-1323.675,0.00014582,2]
[338323306,1726498231840,-2851.4571,0.000146,2]
[338323307,1726498231849,-1560.7031,0.000146,2]
[338323308,1726498231859,-493.199,0.000146,2]
[338323309,1726498231869,-489.6961,0.000146,2]
[338323310,1726498231878,-3984.0528,0.000146,2]
[338323311,1726498231887,-1004.0754,0.000146,2]
[338323312,1726498231897,-7195.78269019,0.000146,2]
[338323313,1726498231908,-3145.49796854,0.000146,2]
[338323314,1726498231919,-479.84771151,0.000146,2]
[338323315,1726498231931,-930.4632953,0.000146,2]
[338323316,1726498231942,-765.06513446,0.000146,2]
[338323317,1726498231951,-298.2351699,0.000146,2]
[338323318,1726498231960,-357.5633,0.000146,2]
[338323319,1726498231969,-1002.42,0.000146,2]
[338323320,1726498231979,-356.29436517,0.000146,2]
[338323321,1726498231988,-1437.09513575,0.000146,2]
[338323322,1726498232000,-1386.0,0.000146,2]
[338323323,1726498232011,-520.41993916,0.000146,2]
[338323324,1726498232022,-361.36554768,0.000146,2]
[338323325,1726498232034,-856.70953894,0.000146,2]
[338323326,1726498232045,-851.45896926,0.000146,2]
[338323327,1726498232056,-540.92031137,0.000146,2]
[338323328,1726498232065,-785.55378427,0.000146,2]
[338323329,1726498232077,-673.44621573,0.000146,2]
[338323330,1726498232086,-320.75404704,0.000146,2]
[338323331,1726498232096,-322.53307974,0.00014633,2]
[338323360,1726498237475,-168.40771536,0.000146,2]
[338323361,1726498237485,-33.7612854,0.00014633,2]
[338323362,1726498237494,-2474.406914,0.00014663,2]
[338323363,1726498237505,-356.29436514,0.00014667,2]
[338323364,1726498237514,-298.23516989,0.00014675,2]
[338323365,1726498237523,-150.01,0.00014677,2]
[338323366,1726498237532,-151.0,0.0001469,2]